bitfinex/quotes_ETHUSD_20250702
["timestamp","ask_amount","ask_price","bid_price","bid_amount"]
[1751419397688,1.6646,2401.8,2401.4,0.02]
[1751419398987,8.85,2401.8,2401.4,0.02]
[1751419399189,2.3911,2401.7,2401.4,0.02]
[1751419401188,1.5061,2401.7,2401.4,0.02]
[1751419404612,12.165,2401.6,2401.4,0.02]
[1751419404910,12.163,2401.5,2401.4,0.02]
[1751419405259,13.6973,2401.5,2401.4,0.02]
[1751419405464,13.6953,2401.5,2401.4,0.02]
[1751419405666,25.06483,2401.5,2401.4,0.02]
[1751419406167,15.06483,2401.5,2401.4,0.02]
[1751419406413,6.23383,2401.5,2401.4,0.02]
[1751419406702,13.6963,2401.5,2401.4,0.02]
[1751419407111,23.6963,2401.5,2401.4,0.02]
[1751419407265,13.6943,2401.5,2401.4,0.02]
[1751419408184,13.6893,2401.5,2401.4,0.02]
[1751419409790,13.6903,2401.5,2401.4,0.02]
[1751419410374,13.6853,2401.5,2401.4,0.02]
[1751419411724,15.05383,2401.5,2401.4,0.02]
[1751419413285,25.60383,2401.5,2401.4,0.02]
[1751419413608,2.90283,2401.5,2401.4,0.02]
[1751419413782,4.8643,2401.5,2401.4,0.02]
[1751419413972,13.6743,2401.5,2401.4,0.02]
[1751419414175,4.8643,2401.5,2401.4,0.02]
[1751419414405,13.8813,2401.5,2401.4,0.02]
[1751419414606,12.347,2401.5,2401.4,0.02]
[1751419414805,0.208,2401.5,2401.4,0.02]
[1751419415001,9.016,2401.5,2401.4,0.02]
[1751419415886,0.208,2401.5,2401.4,0.02]
[1751419416212,12.343,2401.5,2401.4,0.02]
[1751419416516,3.539,2401.5,2401.4,0.02]
[1751419416879,0.208,2401.5,2401.4,0.02]
[1751419417078,9.01,2401.5,2401.4,0.02]
[1751419417780,3.331,2401.7,2401.4,0.02]
[1751419417978,8.802,2401.5,2401.4,0.02]
[1751419418215,3.539,2401.7,2401.4,0.02]
[1751419418403,0.208,2401.7,2401.4,0.02]
[1751419418711,8.797,2401.6,2401.4,0.02]
[1751419419587,0.208,2401.7,2401.4,0.02]
[1751419419787,8.796,2401.6,2401.4,0.228]
[1751419420200,3.538,2401.9,2401.4,0.228]
[1751419420719,8.792,2401.8,2401.4,0.228]
[1751419422509,0.208,2401.9,2401.4,0.228]
[1751419422705,8.785,2401.8,2401.4,0.228]
[1751419423499,0.208,2401.9,2401.4,0.228]
[1751419423897,1.5258,2402.4,2401.4,0.02]
[1751419424211,0.208,2401.8,2401.4,0.02]
[1751419424412,8.779,2401.7,2401.4,0.02]
[1751419430090,8.763,2401.6,2401.4,0.02]
[1751419431450,10.13413,2401.6,2401.4,0.02]
[1751419431595,8.763,2401.6,2401.4,0.02]
[1751419432845,8.752,2401.5,2401.4,0.02]
[1751419433533,3.271,2401.6,2401.4,0.02]
[1751419433732,8.751,2401.5,2401.4,0.02]
[1751419438136,0.208,2401.6,2401.4,0.02]
[1751419438335,8.736,2401.5,2401.4,0.228]
[1751419438555,8.734,2401.5,2401.4,0.228]
[1751419439263,8.734,2401.5,2401.4,0.02]
[1751419439937,8.734,2401.5,2401.4,0.228]
[1751419441071,8.725,2401.6,2401.4,0.228]
[1751419442770,10.011,2402.3,2401.5,12.0592]
[1751419442972,8.718,2402.2,2401.8,10.0]
[1751419443360,3.489,2402.4,2402.0,0.208]
[1751419443361,0.218,2402.4,2402.0,0.208]
[1751419443564,0.01,2402.4,2402.2,0.208]
[1751419443763,8.726,2402.4,2402.2,0.208]
[1751419444153,8.724,2402.4,2402.2,0.208]
[1751419444745,8.724,2402.4,2402.2,0.52276514]
[1751419444942,0.01,2402.4,2402.2,0.52276514]
[1751419447273,1.1108,2402.4,2402.2,0.31476514]
[1751419447465,1.1108,2402.4,2401.8,0.208]
[1751419447662,0.208,2402.2,2401.8,0.208]
[1751419447871,0.01,2402.4,2401.8,0.208]
[1751419447872,8.7,2402.3,2402.0,0.208]
[1751419449179,0.218,2402.4,2402.0,0.208]
[1751419449353,8.699,2402.2,2402.0,0.208]
[1751419449552,8.699,2402.2,2402.1,0.208]
[1751419450181,0.01,2402.4,2402.1,0.208]
[1751419450182,8.692,2402.3,2402.1,0.208]
[1751419450374,8.692,2402.3,2402.1,0.52497935]
[1751419450681,8.692,2402.3,2402.1,0.208]
[1751419451264,8.9,2402.3,2401.9,0.208]
[1751419451760,8.9,2402.3,2401.7,0.208]
[1751419451761,0.208,2402.1,2401.7,0.208]
[1751419452080,10.2796,2402.3,2401.7,0.30982509]
[1751419452081,0.208,2402.0,2401.7,0.30982509]
[1751419452285,0.208,2402.0,2401.6,0.208]
[1751419452286,8.685,2401.9,2401.6,0.208]
[1751419452467,0.208,2401.7,2401.4,0.02]
[1751419452882,8.685,2401.9,2401.4,0.02]
[1751419453186,0.208,2401.8,2401.4,0.228]
[1751419454880,8.676,2401.7,2401.5,10.0]
[1751419455058,8.676,2401.7,2401.5,0.208]
[1751419455279,8.676,2401.7,2401.4,0.02]
[1751419455587,8.676,2401.7,2401.4,0.228]
[1751419456581,8.676,2401.7,2401.5,0.208]
[1751419456890,8.673,2401.8,2401.5,0.208]
[1751419457367,0.208,2401.8,2401.4,0.228]
[1751419457574,8.667,2401.7,2401.4,0.53841922]
[1751419457887,8.667,2401.7,2401.4,0.228]
[1751419458792,8.662,2401.8,2401.5,0.55]
[1751419459092,8.661,2402.0,2401.7,11.41350081]
[1751419459279,0.01,2402.4,2401.8,10.0]
[1751419459594,0.01,2402.4,2402.1,10.0]
[1751419459595,8.66,2402.3,2402.1,10.0]
[1751419460155,0.218,2402.4,2401.9,0.208]
[1751419460361,0.208,2402.2,2401.8,0.208]
[1751419461201,0.208,2402.2,2401.7,1.6049]
[1751419461202,8.658,2402.3,2401.4,0.32964493]
[1751419461401,0.208,2402.0,2401.6,0.208]
[1751419461556,0.01,2402.4,2401.8,1.606]
[1751419461761,0.218,2402.4,2401.9,0.208]
[1751419462197,0.218,2402.4,2402.0,0.55]
[1751419462399,0.01,2402.4,2402.0,0.208]
[1751419462873,0.208,2402.3,2401.8,0.208]
[1751419464012,0.01,2402.4,2401.5,11.6551]
[1751419464161,0.208,2402.1,2401.6,0.208]
[1751419464356,8.643,2402.0,2401.6,0.208]
[1751419464685,0.208,2401.9,2401.5,0.208]
[1751419468687,8.627,2401.9,2401.5,0.55]
[1751419468899,0.208,2402.1,2401.7,0.208]
[1751419469098,8.627,2402.0,2401.7,0.208]
[1751419474111,0.208,2402.1,2401.8,0.55]
[1751419474278,8.607,2402.3,2401.9,0.208]
[1751419474477,0.01,2402.4,2401.9,1.40415008]
[1751419474708,8.616,2402.4,2401.9,1.40415008]
[1751419475012,8.605,2402.3,2401.9,1.40415008]
[1751419475717,8.615,2402.4,2401.9,0.208]
[1751419475899,0.01,2402.4,2401.9,0.208]
[1751419476208,8.601,2402.3,2402.2,0.208]
[1751419477389,8.608,2402.4,2402.2,0.208]
[1751419478513,8.606,2402.4,2402.2,0.208]
[1751419479082,0.01,2402.4,2402.2,0.208]
[1751419479331,0.01,2402.4,2402.2,10.0]
[1751419479526,0.01,2402.4,2401.1,5.81752779]
[1751419479682,3.214,2402.4,2401.8,9.60060081]
[1751419480029,8.587,2402.3,2401.9,10.0]
[1751419480587,8.584,2402.2,2402.0,2.2075]
[1751419480889,8.584,2402.2,2401.7,1.6575]
[1751419481080,8.584,2402.2,2401.4,1.98714493]
[1751419481287,1.6628,2402.1,2401.4,0.32964493]
[1751419483290,11.784,2402.0,2401.5,0.55]
[1751419483719,0.01,2402.4,2401.7,0.55]
[1751419483918,0.01,2402.4,2401.9,0.55]
[1751419484229,0.01,2402.4,2402.0,1.055]
[1751419485313,0.01,2402.4,2401.6,1.5946]
[1751419485523,0.01,2402.4,2401.7,0.55]
[1751419485707,0.01,2402.4,2401.6,1.5946]
[1751419486527,0.01,2403.1,2402.1,12.1944]
[1751419486528,8.567,2402.9,2402.1,12.1944]
[1751419486686,8.567,2402.9,2402.2,2.17950008]
[1751419488804,1.5563,2402.8,2401.5,4.15537699]
[1751419489002,1.5563,2402.8,2401.6,10.0]
[1751419489202,1.5563,2402.8,2401.5,11.5]
[1751419489403,1.5563,2402.8,2401.4,0.32964493]
[1751419489718,1.8485,2402.1,2401.6,0.208]
[1751419489922,10.3995,2402.1,2401.6,0.208]
[1751419490517,8.759,2402.1,2401.6,0.208]
[1751419491020,8.551,2402.1,2401.6,2.01382457]
[1751419491207,8.551,2402.1,2401.8,0.208]
[1751419492023,8.551,2402.1,2401.4,0.32964493]
[1751419492219,8.759,2402.1,2401.6,0.208]
[1751419496638,8.551,2402.1,2401.5,0.02]
[1751419496836,8.551,2402.1,2401.5,0.228]
[1751419496837,0.208,2401.9,2401.5,0.228]
[1751419497136,0.208,2401.9,2401.5,1.28376449]
[1751419498618,8.551,2402.1,2401.5,1.28376449]
[1751419498619,1.6287,2401.8,2401.5,0.02]
[1751419498824,0.208,2401.7,2401.5,0.02]
[1751419501536,8.511,2401.7,2401.5,0.02]
[1751419502533,3.134,2401.6,2401.5,0.02]
[1751419504057,3.342,2401.6,2401.5,0.02]
[1751419510638,6.19447,2401.6,2401.5,0.02]
[1751419511231,10.59147,2401.6,2401.5,0.02]
[1751419511563,4.397,2401.5,2400.7,0.02]
[1751419511840,1.5009,2401.3,2400.7,0.02]
[1751419512237,11.5009,2401.3,2400.7,0.02]
[1751419512447,11.6359,2401.0,2400.7,0.02]
[1751419512608,1.6359,2400.6,2400.5,0.02]
[1751419512811,10.1049,2400.6,2400.5,0.02]
[1751419513410,1.8439,2400.5,2399.3,0.228]
[1751419513645,1.8439,2400.5,2399.7,0.30891202]
[1751419513839,1.03129,2400.4,2399.7,0.30891202]
[1751419514056,1.6137,2400.2,2399.7,0.30891202]
[1751419514239,4.7487,2400.2,2399.7,0.30891202]
[1751419514816,4.7487,2400.2,2399.3,0.228]
[1751419515144,4.7558,2400.2,2399.3,0.02]
[1751419516244,13.2158,2400.2,2399.3,0.02]
[1751419516444,15.62176523,2400.2,2399.3,0.02]
[1751419516627,15.62176523,2400.2,2399.7,0.30983819]
[1751419519220,16.17176523,2400.2,2399.3,0.02]
[1751419519757,16.17176523,2400.2,2400.0,0.02]
[1751419519758,26.17176523,2400.2,2400.0,0.02]
[1751419521048,30.56876523,2400.2,2400.0,0.02]
[1751419521219,26.17176523,2400.2,2400.0,0.02]
[1751419523631,14.57676523,2400.2,2400.0,0.02]
[1751419523826,26.07576523,2400.2,2400.0,0.02]
[1751419524022,25.52276523,2400.2,2400.0,0.02]
[1751419524837,15.52276523,2400.2,2400.0,0.02]
[1751419525032,4.6838,2400.2,2400.0,0.02]
[1751419525246,3.063,2400.2,2400.0,0.02]
[1751419525435,11.492,2400.2,2400.0,0.02]
[1751419525944,10.011,2400.3,2400.0,0.02]
[1751419526120,11.492,2400.2,2400.0,0.02]
[1751419527023,13.6433,2400.2,2400.0,0.02]
[1751419527236,25.8117,2400.2,2400.0,0.02]
[1751419527530,60.2067,2400.2,2400.0,0.02]
[1751419527840,0.55,2399.6,2399.3,0.02]
[1751419528050,1.5399,2399.4,2399.3,0.02]
[1751419529078,2.0899,2399.4,2399.3,0.02]
[1751419529273,12.0899,2399.4,2399.3,0.02]
[1751419529926,14.945,2399.4,2399.2,0.02]
[1751419530154,24.8969,2399.3,2399.2,0.02]
[1751419530370,27.0482,2399.3,2399.2,0.02]
[1751419530748,22.6532,2399.3,2399.2,0.02]
[1751419531070,15.1642,2399.3,2399.2,0.02]
[1751419531777,6.7552,2399.3,2399.2,0.02]
[1751419532092,11.47,2399.3,2399.2,0.02]
[1751419532398,0.208,2399.3,2399.2,0.02]
[1751419532551,8.614,2399.3,2399.2,0.02]
[1751419533196,0.208,2399.3,2399.2,0.02]
[1751419533399,8.61,2399.3,2399.2,0.02]
[1751419534252,9.7774,2399.3,2399.2,0.02]
[1751419535054,11.428,2399.3,2399.2,0.02]
[1751419535254,11.81080792,2399.3,2399.2,0.02]
[1751419535459,11.81079707,2399.3,2399.2,0.02]
[1751419536053,3.40879707,2399.3,2399.2,0.02]
[1751419536279,13.3166,2399.3,2399.2,0.02]
[1751419536680,0.208,2399.3,2399.2,0.02]
[1751419536990,11.661,2399.3,2399.2,1.6484]
[1751419537485,11.661,2399.3,2399.2,0.02]
[1751419538358,11.659,2399.3,2399.2,0.02]
[1751419539501,11.652,2399.3,2399.2,0.02]
[1751419539791,3.272,2399.3,2399.2,0.02]
[1751419539999,11.651,2399.3,2399.2,0.02]
[1751419541357,12.8161,2399.3,2399.2,0.02]
[1751419542083,11.651,2399.3,2399.2,0.02]
[1751419542281,12.03575552,2399.3,2399.2,0.02]
[1751419542689,11.651,2399.3,2399.2,0.02]
[1751419543187,13.241,2399.3,2399.2,0.02]
[1751419543559,13.6259554,2399.3,2399.2,0.02]
[1751419543754,13.62594126,2399.3,2399.2,0.02]
[1751419543960,14.60359413,2399.3,2399.2,0.02]
[1751419544578,3.292,2399.3,2399.2,0.02]
[1751419544972,11.654,2399.3,2399.2,0.02]
[1751419546584,1.23634894,2400.2,2399.5,0.55]
[1751419546890,0.02,2400.3,2399.7,10.0]
[1751419546891,8.74059924,2400.1,2399.7,10.0]
[1751419547089,0.38559924,2400.0,2399.5,1.5378]
[1751419547296,8.73861869,2399.9,2399.5,1.5378]
[1751419547493,0.02,2400.3,2399.5,1.5378]
[1751419547796,0.38576502,2400.2,2399.6,0.55]
[1751419547997,0.02,2400.3,2399.8,0.55]
[1751419548293,8.349,2400.2,2399.9,2.74658]
[1751419550162,8.349,2400.2,2399.9,1.5378]
[1751419551971,3.084,2400.3,2399.9,1.5378]
[1751419552166,8.334,2400.2,2399.9,1.5378]
[1751419553292,8.334,2400.2,2399.8,0.30868306]
[1751419553479,8.334,2400.2,2399.6,1.5222]
[1751419554774,8.344,2400.2,2399.6,1.5222]
[1751419554991,9.4868,2400.2,2399.6,1.5222]
[1751419555194,8.344,2400.2,2399.6,1.5222]
[1751419555399,9.8597,2400.2,2399.6,1.5222]
[1751419555587,9.8597,2400.2,2399.3,1.5282]
[1751419556709,0.208,2399.6,2399.3,1.5282]
[1751419556879,8.319,2399.5,2399.3,1.5282]
[1751419557079,8.319,2399.5,2399.4,10.0]
[1751419559295,8.319,2399.5,2399.3,1.5282]
[1751419559785,8.527,2399.5,2399.3,1.5282]
[1751419559987,8.527,2399.5,2399.2,0.02]
[1751419559988,8.319,2399.5,2399.2,0.02]
[1751419560814,11.298,2399.4,2399.2,0.02]
[1751419561280,1.6616,2399.6,2399.2,0.02]
[1751419561479,11.298,2399.5,2399.2,1.522]
[1751419561815,0.208,2399.4,2399.2,1.522]
[1751419563995,8.292,2399.3,2399.2,1.522]
[1751419565513,8.292,2399.3,2399.2,0.02]
[1751419566437,8.292,2399.3,2399.1,0.02]
[1751419566439,1.6556,2399.2,2399.1,0.02]
[1751419567924,12.9336,2399.2,2399.1,0.02]
[1751419568807,1.6556,2399.2,2399.1,0.02]
[1751419569027,2.996,2399.2,2399.1,0.02]
[1751419569188,11.271,2399.2,2399.1,0.02]
[1751419569792,12.3981,2399.2,2399.1,0.02]
[1751419570596,13.9276,2399.2,2399.1,0.02]
[1751419571214,23.9276,2399.2,2399.1,0.02]
[1751419573020,2.996,2399.3,2399.1,0.02]
[1751419573740,8.261,2399.2,2399.1,0.02]
[1751419574220,8.262,2399.2,2399.1,0.02]
[1751419574718,8.259,2399.2,2399.1,0.02]
[1751419576716,0.208,2399.2,2399.1,0.02]
[1751419577118,0.208,2399.4,2399.2,1.581]
[1751419577321,8.249,2399.3,2399.2,1.789]
[1751419577523,8.249,2399.3,2399.2,12.9699]
[1751419577720,2.996,2399.6,2399.2,12.9699]
[1751419578021,8.247,2399.5,2399.2,12.9699]
[1751419578224,8.247,2399.5,2399.4,0.208]
[1751419578594,8.247,2399.5,2399.2,12.7619]
[1751419578790,8.247,2399.5,2399.3,10.0]
[1751419579144,0.208,2399.2,2399.1,0.02]
[1751419579306,8.451,2399.2,2399.1,0.02]
[1751419580402,0.208,2399.4,2399.1,0.02]
[1751419580616,8.241,2399.3,2399.1,0.02]
[1751419580815,0.8241,2399.2,2399.1,0.02]
[1751419581122,8.241,2399.3,2399.1,0.02]
[1751419583015,1.5312,2399.2,2399.1,0.02]
[1751419584623,2.996,2399.6,2399.1,0.02]
[1751419584624,10.0,2399.6,2399.1,0.02]
[1751419584831,12.6822,2399.5,2399.1,0.02]
[1751419586511,0.38596964,2399.4,2399.1,0.02]
[1751419586701,1.30681696,2399.4,2399.1,0.02]
[1751419588230,1.32681696,2399.4,2399.1,0.02]
[1751419589930,8.209,2399.3,2399.1,0.02]
[1751419591507,1.92987518,2399.2,2399.1,0.02]
[1751419592104,1.5436,2399.2,2399.1,0.02]
[1751419592300,3.03777986,2399.2,2399.1,0.02]
[1751419592639,3.58777986,2399.2,2399.1,0.02]
[1751419594442,25.5165417,2399.2,2399.1,0.02]
[1751419595131,25.90280486,2399.2,2399.1,0.02]
[1751419595330,26.89124155,2399.2,2399.1,0.02]
[1751419595838,26.96494155,2399.2,2399.1,0.02]
[1751419599656,16.04050486,2399.2,2399.1,0.02]
[1751419599953,24.21550486,2399.2,2399.1,0.02]
[1751419601859,24.23550486,2399.2,2399.1,0.02]
[1751419604531,24.78550486,2399.2,2399.1,0.02]
[1751419604958,14.44320486,2399.2,2399.1,0.02]
[1751419605157,22.60120486,2399.2,2399.1,0.02]
[1751419606294,4.44320486,2399.2,2399.1,0.02]
[1751419606460,11.103,2399.2,2399.1,0.02]
[1751419607380,2.949,2399.2,2399.1,0.02]
[1751419607687,11.099,2399.2,2399.1,1.6606]
[1751419608187,2.949,2399.2,2399.1,1.6606]
[1751419608488,11.097,2399.2,2399.1,1.6606]
[1751419608692,11.097,2399.2,2399.1,2.84846]
[1751419609793,11.095,2399.2,2399.1,2.84846]
[1751419611268,8.166,2399.2,2399.1,3.15440798]
[1751419611478,0.02,2399.2,2399.1,12.78425663]
[1751419611796,0.02,2399.2,2399.1,23.54225663]
[1751419612793,0.02,2399.4,2399.3,1.643]
[1751419613091,0.02,2399.4,2399.3,15.60246566]
[1751419613388,0.02,2399.4,2399.3,15.81046566]
[1751419613594,0.01,2400.2,2399.3,15.81046566]
[1751419613770,0.01,2400.2,2399.9,11.5054]
[1751419614100,0.01,2400.2,2400.0,11.7134]
[1751419614264,0.01,2400.2,2400.1,3.67674]
[1751419614265,8.137,2400.2,2400.1,3.67674]
[1751419614597,8.137,2400.2,2400.1,1.5054]
[1751419614806,0.228,2400.5,2400.2,0.55]
[1751419615104,0.02,2400.5,2400.4,0.208]
[1751419615316,0.02,2400.5,2400.4,0.52496975]
[1751419615802,0.02,2400.5,2400.4,1.7134]
[1751419616000,0.02,2400.5,2400.4,1.5054]
[1751419616167,0.228,2400.5,2400.4,1.5054]
[1751419616368,8.347,2400.5,2400.4,1.5054]
[1751419617194,8.347,2400.5,2400.4,1.82296908]
[1751419617362,8.347,2400.5,2400.4,0.31756908]
[1751419617564,8.347,2400.5,2400.2,1.6023]
[1751419621797,0.02,2400.5,2400.2,1.6023]
[1751419622096,8.101,2400.4,2400.3,0.208]
[1751419622496,0.02,2400.5,2400.3,0.208]
[1751419622697,0.01,2401.2,2400.4,11.6174]
[1751419622698,8.097,2400.7,2400.4,11.6174]
[1751419622867,8.097,2400.7,2400.4,13.53510634]
[1751419626294,8.085,2400.6,2400.4,13.53510634]
[1751419629109,8.085,2400.6,2400.5,0.208]
[1751419629802,8.077,2400.7,2400.5,0.208]
[1751419630174,8.077,2400.7,2400.5,11.61372569]
[1751419630373,8.071,2400.8,2400.5,11.61372569]
[1751419630615,0.01,2401.2,2400.6,9.43746335]
[1751419630776,8.069,2401.1,2400.7,11.7438]
[1751419631487,8.067,2401.1,2400.7,11.7438]
[1751419631689,8.067,2401.1,2400.8,1.96454634]
[1751419632411,8.067,2401.1,2400.7,1.7438]
[1751419632621,0.208,2402.1,2401.0,8.10966335]
[1751419632777,0.01,2402.4,2401.6,10.55]
[1751419632975,0.01,2402.4,2402.1,0.208]
[1751419633180,3.073,2402.5,2402.1,0.208]
[1751419633378,2.865,2402.5,2402.2,1.6615]
[1751419633606,8.061,2402.5,2402.2,1.8695]
[1751419633782,8.061,2402.5,2402.2,2.11145]
[1751419634408,8.061,2402.5,2402.2,1.90345]
[1751419634594,8.057,2402.4,2402.2,1.90345]
[1751419634790,8.057,2402.4,2402.1,0.208]
[1751419634791,3.072,2402.5,2402.1,0.208]
[1751419634996,8.056,2402.4,2402.1,0.208]
[1751419636196,8.054,2402.4,2402.1,0.208]
[1751419637020,8.054,2402.4,2402.2,0.208]
[1751419637226,8.064,2402.4,2402.2,0.208]
[1751419637719,8.064,2402.4,2402.2,2.11957634]
[1751419638295,0.01,2402.4,2402.3,12.2063]
[1751419638523,13.39512861,2404.5,2402.3,12.2063]
[1751419638524,1.6104,2404.9,2402.8,0.55]
[1751419638698,2.864,2404.5,2403.1,10.0]
[1751419638897,8.42749364,2404.4,2403.3,11.6563]
[1751419639088,1.99387188,2404.3,2403.4,0.55]
[1751419639287,1.99387188,2404.3,2403.3,11.6563]
[1751419639607,0.38347188,2404.2,2403.3,11.6563]
[1751419639807,1.99387188,2404.3,2403.3,11.6563]
[1751419640012,1.38693796,2404.2,2403.3,12.99544663]
[1751419640815,8.038,2404.1,2403.3,12.99544663]
[1751419641022,8.037,2404.0,2403.3,12.99544663]
[1751419641920,1.6104,2404.3,2403.3,12.99544663]
[1751419642092,8.034,2404.2,2403.5,1.6333]
[1751419643099,2.863,2404.4,2403.5,1.6333]
[1751419643296,0.2218063,2405.1,2403.8,0.55]
[1751419643501,0.01,2405.3,2405.1,0.55]
[1751419643796,1.64,2406.0,2405.2,1.639]
[1751419643997,1.64,2406.0,2405.8,11.639]
[1751419644400,8.027,2405.9,2405.8,0.31133526]
[1751419644600,8.027,2405.9,2405.4,11.5357]
[1751419644803,8.026,2405.8,2405.4,11.5357]
[1751419645333,4.502,2406.0,2405.4,1.84822345]
[1751419645334,8.025,2405.7,2405.4,1.84822345]
[1751419645513,8.024,2405.6,2405.4,1.84822345]
[1751419645932,8.024,2405.6,2405.4,0.31252345]
[1751419646101,8.024,2405.6,2405.1,11.5722]
[1751419646302,8.024,2405.6,2405.1,13.51958634]
[1751419646761,8.02,2405.5,2405.1,13.51958634]
[1751419647050,8.02,2405.4,2405.1,13.51958634]
[1751419647514,8.02,2405.4,2405.1,13.83224505]
[1751419647898,3.2017,2406.0,2405.2,0.55]
[1751419647899,1.64,2406.0,2405.2,0.55]
[1751419648230,1.64,2406.0,2405.1,13.83224505]
[1751419648231,10.825,2405.9,2405.3,1.43822451]
[1751419648430,0.2072,2405.7,2405.3,0.2072]
[1751419648821,10.825,2405.9,2405.1,13.83224505]
[1751419649138,0.2072,2405.4,2405.1,0.31265871]
[1751419649427,1.5767,2405.8,2404.8,1.5817]
[1751419649428,0.2072,2405.2,2404.8,1.7889]
[1751419650137,0.2072,2405.2,2404.8,2.1025267]
[1751419650318,0.2072,2405.2,2404.8,2.31277937]
[1751419650726,2.806,2405.1,2404.8,0.3136267]
[1751419650956,0.2072,2405.0,2404.6,0.2072]
[1751419651117,8.007,2404.9,2404.6,0.55]
[1751419651323,8.007,2404.9,2404.8,0.2072]
[1751419651932,0.2072,2405.2,2404.8,0.5176999]
[1751419652132,8.004,2405.1,2404.8,0.2072]
[1751419654525,8.004,2405.1,2404.5,1.6513]
[1751419654724,8.2112,2405.1,2404.6,0.2072]
[1751419654923,0.2072,2405.0,2404.5,1.8585]
[1751419655120,8.004,2405.1,2404.4,0.2072]
[1751419655121,0.2072,2404.8,2404.4,0.2072]
[1751419657355,0.2072,2404.8,2404.4,0.5186993]
[1751419660264,9.6556,2405.1,2404.4,0.3114993]
[1751419660464,0.2072,2404.5,2404.1,0.2072]
[1751419660766,7.986,2404.4,2404.1,0.2072]
[1751419661966,7.986,2404.4,2404.0,1.664]
[1751419662167,8.1932,2404.4,2404.0,1.664]
[1751419662343,8.1932,2404.4,2403.9,0.2072]
[1751419662664,0.2072,2404.2,2403.8,0.228]
[1751419663070,1.5982,2404.8,2403.9,10.0]
[1751419663376,0.2072,2404.5,2404.2,1.5402]
[1751419663532,1.5982,2404.8,2404.3,10.2072]
[1751419663533,0.2072,2404.7,2404.3,10.2072]
[1751419663733,7.979,2404.6,2404.3,10.2072]
[1751419663938,0.2072,2404.7,2404.3,10.2072]
[1751419664286,2.805,2405.2,2404.4,0.55]
[1751419664440,7.978,2405.1,2404.7,10.0]
[1751419664640,3.0122,2405.2,2404.7,10.0]
[1751419664852,7.977,2405.1,2404.6,10.2072]
[1751419665048,0.2072,2404.9,2404.6,10.0]
[1751419665573,0.2072,2404.9,2404.5,1.7474]
[1751419667266,0.38491536,2404.8,2404.5,1.7474]
[1751419667440,0.2072,2404.9,2404.5,1.7474]
[1751419667644,0.38496495,2404.8,2404.5,1.7474]
[1751419667874,0.2072,2404.9,2404.5,1.7474]
[1751419668074,0.38496391,2404.8,2404.5,1.7474]
[1751419668387,0.38548416,2404.7,2404.5,1.7474]
[1751419668679,0.38548416,2404.6,2404.5,1.7474]
[1751419670279,0.3861338,2404.6,2404.5,1.7474]
[1751419670480,7.973,2404.8,2404.5,1.7474]
[1751419670673,0.3861464,2404.7,2404.5,1.7474]
[1751419670871,7.973,2404.8,2404.5,1.7474]
[1751419671186,1.22756981,2405.3,2404.6,0.55]
[1751419671478,5.76962842,2406.7,2404.6,0.55]
[1751419671479,0.38628793,2405.2,2405.0,0.55]
[1751419671683,0.3863496,2405.1,2405.0,0.55]
[1751419672074,7.961,2405.9,2405.0,0.55]
[1751419672275,9.35866,2405.9,2405.0,0.75992]
[1751419672485,6.0156,2406.0,2405.4,1.6074]
[1751419672686,4.445,2406.0,2405.5,0.55]
[1751419672869,4.445,2406.0,2405.1,0.55449554]
[1751419672870,1.64,2406.0,2405.9,2.1574]
[1751419675210,0.37549793,2407.1,2406.1,10.55]
[1751419675490,0.2218063,2407.5,2407.0,0.55]
[1751419676997,0.2218063,2407.5,2406.9,1.5515]
[1751419676998,0.2218063,2407.5,2407.4,0.55]
[1751419678059,0.2218063,2407.5,2407.3,1.6073]
[1751419678390,0.2218063,2407.5,2407.4,0.55]
[1751419678592,0.2218063,2407.5,2407.3,1.6073]
[1751419679496,0.2218063,2407.5,2407.3,0.30903866]
[1751419679684,0.2218063,2407.5,2406.9,1.6073]
[1751419681125,1.5539,2407.4,2406.5,1.6448]
[1751419681281,0.2072,2407.3,2406.9,0.2072]
[1751419683026,2.52527063,2407.4,2406.5,1.94956336]
[1751419683334,0.2072,2407.1,2406.6,0.2072]
[1751419683616,2.9702,2407.1,2406.6,0.2072]
[1751419684616,0.2072,2407.1,2406.6,0.2072]
[1751419685004,0.2072,2407.1,2406.6,1.25839634]
[1751419685208,2.763,2407.2,2406.6,1.05119634]
[1751419685410,2.9702,2407.2,2406.8,0.2072]